[Event "Titled Tuesday Blitz March 28 Late 2023"]
[White "Goraj, Barbara"]
[Black "Wagner, Dennis"]
[WhiteFideId "21816166"]
[BlackFideId "24650684"]
[WhiteElo "2074"]
[BlackElo "2470"]
[Result "1/2-1/2"]
[Round "01"]
[TimeControl "180+2"]
[Date "2023.03.28"]
[WhiteClock "0:00:17"]
[BlackClock "0:00:10"]

1. d4 {[%clk 0:02:58]}  Nf6 {[%clk 0:02:54]} 2. c4 {[%clk 0:02:58]}  e6 {[%clk 0:02:52]} 3. Nf3 {[%clk 0:02:53]}  d5 {[%clk 0:02:51]} 4. cxd5 {[%clk 0:02:49]}  exd5 {[%clk 0:02:51]} 5. Nc3 {[%clk 0:02:48]}  c6 {[%clk 0:02:49]} 6. Bg5 {[%clk 0:02:48]}  Be7 {[%clk 0:02:47]} 7. e3 {[%clk 0:02:48]}  Bf5 {[%clk 0:02:42]} 8. h3 {[%clk 0:02:42]}  h6 {[%clk 0:02:42]} 9. Bh4 {[%clk 0:02:41]}  Nbd7 {[%clk 0:02:42]} 10. Bd3 {[%clk 0:02:36]}  Bxd3 {[%clk 0:02:41]} 11. Qxd3 {[%clk 0:02:37]}  O-O {[%clk 0:02:40]} 12. O-O {[%clk 0:02:37]}  Re8 {[%clk 0:02:40]} 13. Rac1 {[%clk 0:02:35]}  Nf8 {[%clk 0:02:22]} 14. Ne5 {[%clk 0:02:30]}  N6d7 {[%clk 0:02:18]} 15. Bxe7 {[%clk 0:02:28]}  Qxe7 {[%clk 0:02:18]} 16. Nxd7 {[%clk 0:02:26]}  Nxd7 {[%clk 0:02:18]} 17. Na4 {[%clk 0:02:27]}  g6 {[%clk 0:02:05]} 18. Nc5 {[%clk 0:02:25]}  Nxc5 {[%clk 0:02:05]} 19. Rxc5 {[%clk 0:02:23]}  Qg5 {[%clk 0:01:55]} 20. b4 {[%clk 0:02:19]}  a6 {[%clk 0:01:54]} 21. a4 {[%clk 0:02:18]}  Re6 {[%clk 0:01:53]} 22. b5 {[%clk 0:02:15]}  axb5 {[%clk 0:01:53]} 23. axb5 {[%clk 0:02:16]}  Rf6 {[%clk 0:01:49]} 24. Rfc1 {[%clk 0:02:03]}  Qh4 {[%clk 0:01:33]} 25. R5c2 {[%clk 0:01:59]}  Kg7 {[%clk 0:01:32]} 26. bxc6 {[%clk 0:01:56]}  bxc6 {[%clk 0:01:33]} 27. Qe2 {[%clk 0:01:51]}  Rc8 {[%clk 0:01:11]} 28. Qg4 {[%clk 0:01:48]}  Qxg4 {[%clk 0:01:11]} 29. hxg4 {[%clk 0:01:49]}  Re6 {[%clk 0:01:11]} 30. Rc5 {[%clk 0:01:48]}  Rd6 {[%clk 0:01:08]} 31. Rb1 {[%clk 0:01:23]}  Rc7 {[%clk 0:01:08]} 32. Rb6 {[%clk 0:01:21]}  Kf6 {[%clk 0:01:08]} 33. g3 {[%clk 0:01:13]}  Kg5 {[%clk 0:01:08]} 34. f3 {[%clk 0:01:08]}  Re6 {[%clk 0:01:08]} 35. Kf2 {[%clk 0:01:04]}  f5 {[%clk 0:01:05]} 36. gxf5 {[%clk 0:01:03]}  gxf5 {[%clk 0:01:06]} 37. Rc3 {[%clk 0:00:53]}  h5 {[%clk 0:01:02]} 38. Rb8 {[%clk 0:00:43]}  Rg6 {[%clk 0:00:57]} 39. Rd8 {[%clk 0:00:41]}  Ra7 {[%clk 0:00:56]} 40. Rc2 {[%clk 0:00:39]}  h4 {[%clk 0:00:38]} 41. gxh4+ {[%clk 0:00:38]}  Kxh4 {[%clk 0:00:39]} 42. Rc8 {[%clk 0:00:34]}  Ra6 {[%clk 0:00:35]} 43. Rh8+ {[%clk 0:00:29]}  Kg5 {[%clk 0:00:35]} 44. Rc8 {[%clk 0:00:29]}  f4 {[%clk 0:00:34]} 45. e4 {[%clk 0:00:28]}  dxe4 {[%clk 0:00:34]} 46. fxe4 {[%clk 0:00:29]}  Kg4 {[%clk 0:00:35]} 47. d5 {[%clk 0:00:23]}  cxd5 {[%clk 0:00:34]} 48. exd5 {[%clk 0:00:24]}  Ra3 {[%clk 0:00:34]} 49. R8c3 {[%clk 0:00:23]}  Ra1 {[%clk 0:00:28]} 50. Rd3 {[%clk 0:00:21]}  Rh1 {[%clk 0:00:26]} 51. Ke2 {[%clk 0:00:20]}  Rgh6 {[%clk 0:00:22]} 52. Kd2 {[%clk 0:00:20]}  Rh8 {[%clk 0:00:21]} 53. d6 {[%clk 0:00:19]}  R1h2+ {[%clk 0:00:20]} 54. Kc1 {[%clk 0:00:18]}  Rh1+ {[%clk 0:00:20]} 55. Kb2 {[%clk 0:00:16]}  Rb8+ {[%clk 0:00:20]} 56. Rb3 {[%clk 0:00:16]}  Rd8 {[%clk 0:00:21]} 57. Rd2 {[%clk 0:00:15]}  Rh6 {[%clk 0:00:21]} 58. d7 {[%clk 0:00:16]}  Rh7 {[%clk 0:00:21]} 59. Rbd3 {[%clk 0:00:15]}  f3 {[%clk 0:00:21]} 60. Rf2 {[%clk 0:00:15]}  Rhxd7 {[%clk 0:00:19]} 61. Rdxf3 {[%clk 0:00:15]}  Rb7+ {[%clk 0:00:19]} 62. Kc2 {[%clk 0:00:15]}  Rc7+ {[%clk 0:00:19]} 63. Rc3 {[%clk 0:00:15]}  Ra7 {[%clk 0:00:17]} 64. Rc4+ {[%clk 0:00:15]}  Kg3 {[%clk 0:00:17]} 65. Rff4 {[%clk 0:00:15]}  Ra2+ {[%clk 0:00:17]} 66. Kc3 {[%clk 0:00:15]}  Rad2 {[%clk 0:00:17]} 67. Rg4+ {[%clk 0:00:15]}  Kf3 {[%clk 0:00:17]} 68. Rgf4+ {[%clk 0:00:15]}  Ke2 {[%clk 0:00:17]} 69. Rfe4+ {[%clk 0:00:16]}  Kd1 {[%clk 0:00:17]} 70. Rcd4 {[%clk 0:00:15]}  Rc8+ {[%clk 0:00:09]} 71. Kb3 {[%clk 0:00:15]}  Rb8+ {[%clk 0:00:09]} 72. Kc3 {[%clk 0:00:15]}  Rc8+ {[%clk 0:00:09]} 73. Kb3 {[%clk 0:00:16]}  Rxd4 {[%clk 0:00:09]} 74. Rxd4+ {[%clk 0:00:15]}  Kc1 {[%clk 0:00:09]} 75. Rc4+ {[%clk 0:00:16]}  Rxc4 {[%clk 0:00:10]} 76. Kxc4 {[%clk 0:00:17]} 1/2-1/2


[Site "https://www.chess.com"]

[Event "Titled Tuesday Blitz March 28 Late 2023"]
[White "Horvath, Dominik"]
[Black "Stanojevic, Ilija"]
[WhiteFideId "1642561"]
[BlackFideId "959995"]
[WhiteElo "2407"]
[BlackElo "2138"]
[Result "1-0"]
[Round "01"]
[TimeControl "180+2"]
[Date "2023.03.28"]
[WhiteClock "0:02:04"]
[BlackClock "0:00:26"]

1. e4 {[%clk 0:02:58]}  d6 {[%clk 0:02:59]} 2. d4 {[%clk 0:02:55]}  Nf6 {[%clk 0:02:58]} 3. Nc3 {[%clk 0:02:54]}  Nbd7 {[%clk 0:02:58]} 4. Nf3 {[%clk 0:02:50]}  e5 {[%clk 0:02:57]} 5. h3 {[%clk 0:02:50]}  Be7 {[%clk 0:02:55]} 6. g4 {[%clk 0:02:49]}  h6 {[%clk 0:02:54]} 7. Rg1 {[%clk 0:02:49]}  c6 {[%clk 0:02:52]} 8. a4 {[%clk 0:02:48]}  Qc7 {[%clk 0:02:39]} 9. Bc4 {[%clk 0:02:48]}  d5 {[%clk 0:02:12]} 10. exd5 {[%clk 0:02:42]}  cxd5 {[%clk 0:02:11]} 11. Bxd5 {[%clk 0:02:43]}  Nxd5 {[%clk 0:02:04]} 12. Nxd5 {[%clk 0:02:43]}  Qa5+ {[%clk 0:02:04]} 13. Nc3 {[%clk 0:02:41]}  e4 {[%clk 0:02:01]} 14. Nd2 {[%clk 0:02:40]}  e3 {[%clk 0:02:01]} 15. fxe3 {[%clk 0:02:37]}  Bh4+ {[%clk 0:02:01]} 16. Ke2 {[%clk 0:02:36]}  O-O {[%clk 0:01:55]} 17. Nf3 {[%clk 0:02:34]}  Bf6 {[%clk 0:01:38]} 18. Qd3 {[%clk 0:02:34]}  Re8 {[%clk 0:01:23]} 19. Bd2 {[%clk 0:02:30]}  Qb6 {[%clk 0:01:02]} 20. Nd5 {[%clk 0:02:21]}  Qc6 {[%clk 0:00:57]} 21. c4 {[%clk 0:02:17]}  Nb6 {[%clk 0:00:55]} 22. Nxf6+ {[%clk 0:02:15]}  Qxf6 {[%clk 0:00:56]} 23. g5 {[%clk 0:02:10]}  hxg5 {[%clk 0:00:53]} 24. Rxg5 {[%clk 0:02:11]}  Be6 {[%clk 0:00:48]} 25. b3 {[%clk 0:02:12]}  Rad8 {[%clk 0:00:47]} 26. Rag1 {[%clk 0:02:11]}  Bxh3 {[%clk 0:00:29]} 27. Rh5 {[%clk 0:02:05]}  Be6 {[%clk 0:00:26]} 28. Qh7+ {[%clk 0:02:04]}  Kf8 {[%clk 0:00:26]} 29. Bb4+ {[%clk 0:02:04]} 1-0


[Site "https://www.chess.com"]

[Event "Titled Tuesday Blitz March 28 Late 2023"]
[White "Adewumi, Tanitoluwa"]
[Black "Lorenzo De La Riva, Lazaro"]
[WhiteFideId "30966396"]
[BlackFideId "2268809"]
[WhiteElo "2757"]
[BlackElo "2294"]
[Result "0-1"]
[Round "01"]
[TimeControl "180+2"]
[Date "2023.03.28"]
[WhiteClock "0:00:20"]
[BlackClock "0:00:19"]

1. e4 {[%clk 0:02:56]}  c6 {[%clk 0:03:00]} 2. d4 {[%clk 0:02:55]}  d5 {[%clk 0:03:01]} 3. exd5 {[%clk 0:02:56]}  cxd5 {[%clk 0:03:01]} 4. Bd3 {[%clk 0:02:57]}  Nc6 {[%clk 0:03:00]} 5. c3 {[%clk 0:02:51]}  Nf6 {[%clk 0:03:00]} 6. h3 {[%clk 0:02:40]}  g6 {[%clk 0:02:59]} 7. Nf3 {[%clk 0:02:39]}  Bf5 {[%clk 0:02:59]} 8. O-O {[%clk 0:02:40]}  Bxd3 {[%clk 0:02:55]} 9. Qxd3 {[%clk 0:02:41]}  e6 {[%clk 0:02:54]} 10. Re1 {[%clk 0:02:38]}  Bg7 {[%clk 0:02:51]} 11. Bf4 {[%clk 0:02:31]}  O-O {[%clk 0:02:50]} 12. Nbd2 {[%clk 0:02:30]}  Nd7 {[%clk 0:02:44]} 13. Qe3 {[%clk 0:02:25]}  Re8 {[%clk 0:02:42]} 14. Bh6 {[%clk 0:02:24]}  Bxh6 {[%clk 0:02:35]} 15. Qxh6 {[%clk 0:02:23]}  Qf6 {[%clk 0:02:36]} 16. Re2 {[%clk 0:02:08]}  Qg7 {[%clk 0:02:35]} 17. Qh4 {[%clk 0:02:04]}  Re7 {[%clk 0:02:25]} 18. Rae1 {[%clk 0:01:52]}  Rae8 {[%clk 0:02:25]} 19. c4 {[%clk 0:01:49]}  dxc4 {[%clk 0:02:02]} 20. d5 {[%clk 0:01:48]}  g5 {[%clk 0:01:49]} 21. Qg3 {[%clk 0:01:22]}  exd5 {[%clk 0:01:43]} 22. Rxe7 {[%clk 0:01:21]}  Rxe7 {[%clk 0:01:19]} 23. Rxe7 {[%clk 0:01:21]}  Nxe7 {[%clk 0:01:20]} 24. Qd6 {[%clk 0:01:22]}  Qxb2 {[%clk 0:01:11]} 25. Qxe7 {[%clk 0:01:18]}  Nf8 {[%clk 0:00:35]} 26. Qxg5+ {[%clk 0:00:52]}  Qg7 {[%clk 0:00:27]} 27. Qxd5 {[%clk 0:00:50]}  c3 {[%clk 0:00:26]} 28. Nb3 {[%clk 0:00:47]}  c2 {[%clk 0:00:26]} 29. Qc5 {[%clk 0:00:47]}  Qb2 {[%clk 0:00:24]} 30. Nfd4 {[%clk 0:00:44]}  Qxa2 {[%clk 0:00:22]} 31. Qxc2 {[%clk 0:00:37]}  Qxc2 {[%clk 0:00:21]} 32. Nxc2 {[%clk 0:00:38]}  Ne6 {[%clk 0:00:21]} 33. f3 {[%clk 0:00:36]}  b6 {[%clk 0:00:20]} 34. Kf2 {[%clk 0:00:36]}  a5 {[%clk 0:00:20]} 35. Ke3 {[%clk 0:00:36]}  a4 {[%clk 0:00:20]} 36. Nc1 {[%clk 0:00:35]}  Kg7 {[%clk 0:00:18]} 37. Na2 {[%clk 0:00:33]}  Kf6 {[%clk 0:00:17]} 38. Nc3 {[%clk 0:00:34]}  Nc5 {[%clk 0:00:15]} 39. Nd5+ {[%clk 0:00:33]}  Ke5 {[%clk 0:00:15]} 40. Nxb6 {[%clk 0:00:34]}  Kd6 {[%clk 0:00:14]} 41. Kd4 {[%clk 0:00:33]}  Kc6 {[%clk 0:00:14]} 42. Nc4 {[%clk 0:00:32]}  Ne6+ {[%clk 0:00:14]} 43. Kc3 {[%clk 0:00:30]}  Nf4 {[%clk 0:00:14]} 44. N2e3 {[%clk 0:00:25]}  Kc5 {[%clk 0:00:14]} 45. g3 {[%clk 0:00:14]}  Nxh3 {[%clk 0:00:14]} 46. Ne5 {[%clk 0:00:11]}  a3 {[%clk 0:00:12]} 47. Nd3+ {[%clk 0:00:09]}  Kd6 {[%clk 0:00:11]} 48. Kb3 {[%clk 0:00:09]}  Ng5 {[%clk 0:00:12]} 49. f4 {[%clk 0:00:09]}  Ne4 {[%clk 0:00:12]} 50. g4 {[%clk 0:00:09]}  Nc5+ {[%clk 0:00:11]} 51. Nxc5 {[%clk 0:00:09]}  Kxc5 {[%clk 0:00:12]} 52. Kxa3 {[%clk 0:00:08]}  Kd4 {[%clk 0:00:13]} 53. Ng2 {[%clk 0:00:06]}  Ke4 {[%clk 0:00:13]} 54. Kb4 {[%clk 0:00:06]}  Kf3 {[%clk 0:00:14]} 55. Kc4 {[%clk 0:00:05]}  Kxg2 {[%clk 0:00:13]} 56. f5 {[%clk 0:00:05]}  Kf3 {[%clk 0:00:13]} 57. Kd5 {[%clk 0:00:06]}  Kxg4 {[%clk 0:00:13]} 58. f6 {[%clk 0:00:06]}  Kf5 {[%clk 0:00:13]} 59. Kd6 {[%clk 0:00:07]}  Kxf6 {[%clk 0:00:14]} 60. Kd5 {[%clk 0:00:07]}  h5 {[%clk 0:00:15]} 61. Kd4 {[%clk 0:00:08]}  Kg5 {[%clk 0:00:15]} 62. Ke3 {[%clk 0:00:09]}  h4 {[%clk 0:00:16]} 63. Kf3 {[%clk 0:00:10]}  Kh5 {[%clk 0:00:16]} 64. Kg2 {[%clk 0:00:11]}  f5 {[%clk 0:00:16]} 65. Kh3 {[%clk 0:00:12]}  Kg5 {[%clk 0:00:17]} 66. Kg2 {[%clk 0:00:12]}  f4 {[%clk 0:00:17]} 67. Kf2 {[%clk 0:00:13]}  Kg4 {[%clk 0:00:18]} 68. Kg2 {[%clk 0:00:14]}  f3+ {[%clk 0:00:18]} 69. Kg1 {[%clk 0:00:15]}  Kg3 {[%clk 0:00:18]} 70. Kf1 {[%clk 0:00:15]}  f2 {[%clk 0:00:18]} 71. Ke2 {[%clk 0:00:15]}  Kg2 {[%clk 0:00:19]} 72. Kd1 {[%clk 0:00:15]}  f1=Q+ {[%clk 0:00:19]} 73. Kd2 {[%clk 0:00:16]}  h3 {[%clk 0:00:19]} 74. Ke3 {[%clk 0:00:17]}  h2 {[%clk 0:00:19]} 75. Kd2 {[%clk 0:00:18]}  h1=Q {[%clk 0:00:19]} 76. Ke3 {[%clk 0:00:19]}  Qh3+ {[%clk 0:00:19]} 77. Kd2 {[%clk 0:00:20]}  Qf2+ {[%clk 0:00:19]} 78. Kd1 {[%clk 0:00:20]}  Qh1# {[%clk 0:00:19]} 0-1


[Site "https://www.chess.com"]

[Event "Titled Tuesday Blitz March 28 Late 2023"]
[White "Klekowski, Maciej"]
[Black "Brilej, Jaka"]
[WhiteFideId "1132717"]
[BlackFideId "14618818"]
[WhiteElo "2540"]
[BlackElo "2231"]
[Result "1-0"]
[Round "01"]
[TimeControl "180+2"]
[Date "2023.03.28"]
[WhiteClock "0:02:26"]
[BlackClock "0:01:14"]

1. Nf3 {[%clk 0:03:00]}  d5 {[%clk 0:02:32]} 2. b3 {[%clk 0:03:00]}  c5 {[%clk 0:02:31]} 3. Bb2 {[%clk 0:03:00]}  Nc6 {[%clk 0:02:31]} 4. e3 {[%clk 0:03:01]}  Nf6 {[%clk 0:02:30]} 5. Bb5 {[%clk 0:03:01]}  e6 {[%clk 0:02:29]} 6. O-O {[%clk 0:03:01]}  Bd6 {[%clk 0:02:28]} 7. d4 {[%clk 0:03:01]}  O-O {[%clk 0:02:24]} 8. Nbd2 {[%clk 0:03:00]}  cxd4 {[%clk 0:02:23]} 9. exd4 {[%clk 0:03:00]}  Qc7 {[%clk 0:02:23]} 10. Re1 {[%clk 0:02:59]}  Bd7 {[%clk 0:02:10]} 11. a3 {[%clk 0:02:58]}  a6 {[%clk 0:02:10]} 12. Bd3 {[%clk 0:02:58]}  Rfe8 {[%clk 0:02:09]} 13. Ne5 {[%clk 0:02:57]}  Ne7 {[%clk 0:02:01]} 14. c4 {[%clk 0:02:49]}  Ng6 {[%clk 0:01:55]} 15. Ndf3 {[%clk 0:02:40]}  dxc4 {[%clk 0:01:49]} 16. bxc4 {[%clk 0:02:40]}  Bxe5 {[%clk 0:01:49]} 17. Nxe5 {[%clk 0:02:37]}  Nxe5 {[%clk 0:01:49]} 18. Rxe5 {[%clk 0:02:37]}  Nd5 {[%clk 0:01:14]} 19. cxd5 {[%clk 0:02:26]} 1-0


[Site "https://www.chess.com"]

[Event "Titled Tuesday Blitz March 28 Late 2023"]
[White "Mekhane, Adam"]
[Black "Oro, Faustino"]
[WhiteFideId "36050601"]
[BlackFideId "20000197"]
[WhiteElo "2177"]
[BlackElo "1984"]
[Result "1-0"]
[Round "01"]
[TimeControl "180+2"]
[Date "2023.03.28"]
[WhiteClock "0:00:36"]
[BlackClock "0:00:41"]

1. e4 {[%clk 0:02:54]}  e5 {[%clk 0:02:59]} 2. Nf3 {[%clk 0:02:54]}  Nc6 {[%clk 0:02:59]} 3. Bb5 {[%clk 0:02:55]}  Nf6 {[%clk 0:02:59]} 4. O-O {[%clk 0:02:54]}  Nxe4 {[%clk 0:02:52]} 5. d4 {[%clk 0:02:54]}  Nd6 {[%clk 0:02:52]} 6. dxe5 {[%clk 0:02:54]}  Nxb5 {[%clk 0:02:51]} 7. a4 {[%clk 0:02:55]}  Nbd4 {[%clk 0:02:50]} 8. Nxd4 {[%clk 0:02:55]}  Nxd4 {[%clk 0:02:50]} 9. Qxd4 {[%clk 0:02:55]}  d6 {[%clk 0:02:51]} 10. exd6 {[%clk 0:02:55]}  Qxd6 {[%clk 0:02:52]} 11. Qe4+ {[%clk 0:02:55]}  Qe6 {[%clk 0:02:51]} 12. Qd4 {[%clk 0:02:55]}  f6 {[%clk 0:02:51]} 13. Bf4 {[%clk 0:02:46]}  c6 {[%clk 0:02:38]} 14. Nc3 {[%clk 0:02:43]}  Kf7 {[%clk 0:02:37]} 15. Rfe1 {[%clk 0:02:33]}  Qf5 {[%clk 0:02:34]} 16. Qd8 {[%clk 0:02:02]}  Qd7 {[%clk 0:01:54]} 17. Qa5 {[%clk 0:01:40]}  b6 {[%clk 0:01:47]} 18. Qh5+ {[%clk 0:01:26]}  g6 {[%clk 0:01:47]} 19. Qf3 {[%clk 0:01:22]}  Bb7 {[%clk 0:01:31]} 20. Rad1 {[%clk 0:01:18]}  Qf5 {[%clk 0:01:28]} 21. g4 {[%clk 0:01:05]}  Qc8 {[%clk 0:01:13]} 22. Ne4 {[%clk 0:00:53]}  Be7 {[%clk 0:01:00]} 23. Bd6 {[%clk 0:00:42]}  Bd8 {[%clk 0:00:51]} 24. Nxf6 {[%clk 0:00:38]}  Bxf6 {[%clk 0:00:41]} 25. Re7+ {[%clk 0:00:36]}  Kg8 {[%clk 0:00:41]} 26. Qb3+ {[%clk 0:00:36]} 1-0


[Site "https://www.chess.com"]

[Event "Titled Tuesday Blitz March 28 Late 2023"]
[White "Buchenau, Frank"]
[Black "Pulpan, Jakub"]
[WhiteFideId "4604350"]
[BlackFideId "302759"]
[WhiteElo "2157"]
[BlackElo "2484"]
[Result "1-0"]
[Round "01"]
[TimeControl "180+2"]
[Date "2023.03.28"]
[WhiteClock "0:00:51"]
[BlackClock "0:01:40"]

1. e4 {[%clk 0:02:58]}  a5 {[%clk 0:02:58]} 2. d4 {[%clk 0:02:57]}  a4 {[%clk 0:02:58]} 3. c4 {[%clk 0:02:56]}  e6 {[%clk 0:02:58]} 4. Nf3 {[%clk 0:02:54]}  Nf6 {[%clk 0:02:58]} 5. Bd3 {[%clk 0:02:52]}  Bb4+ {[%clk 0:02:56]} 6. Nbd2 {[%clk 0:02:46]}  d6 {[%clk 0:02:56]} 7. O-O {[%clk 0:02:46]}  Nc6 {[%clk 0:02:56]} 8. d5 {[%clk 0:02:39]}  Ne7 {[%clk 0:02:53]} 9. a3 {[%clk 0:02:34]}  Bc5 {[%clk 0:02:49]} 10. Nb1 {[%clk 0:02:29]}  c6 {[%clk 0:02:33]} 11. Nc3 {[%clk 0:02:22]}  Qa5 {[%clk 0:02:32]} 12. Bd2 {[%clk 0:02:18]}  Qa7 {[%clk 0:02:32]} 13. Bc2 {[%clk 0:02:11]}  Ng4 {[%clk 0:02:28]} 14. Qe2 {[%clk 0:02:07]}  Ng6 {[%clk 0:02:28]} 15. Bxa4 {[%clk 0:02:00]}  O-O {[%clk 0:02:23]} 16. b4 {[%clk 0:01:55]}  Bb6 {[%clk 0:02:20]} 17. dxc6 {[%clk 0:01:55]}  bxc6 {[%clk 0:02:21]} 18. Bxc6 {[%clk 0:01:54]}  Rb8 {[%clk 0:02:21]} 19. Nb5 {[%clk 0:01:50]}  Qe7 {[%clk 0:02:21]} 20. a4 {[%clk 0:01:44]}  Ba6 {[%clk 0:02:17]} 21. a5 {[%clk 0:01:44]}  Bxb5 {[%clk 0:02:18]} 22. cxb5 {[%clk 0:01:42]}  Ba7 {[%clk 0:02:18]} 23. b6 {[%clk 0:01:41]}  Bxb6 {[%clk 0:02:19]} 24. axb6 {[%clk 0:01:41]}  Rxb6 {[%clk 0:02:17]} 25. b5 {[%clk 0:01:40]}  N4e5 {[%clk 0:02:18]} 26. Nxe5 {[%clk 0:01:39]}  Nxe5 {[%clk 0:02:19]} 27. Be3 {[%clk 0:01:36]}  Rbb8 {[%clk 0:02:15]} 28. Ra7 {[%clk 0:01:36]}  Qf6 {[%clk 0:02:11]} 29. Bd4 {[%clk 0:01:17]}  Qf4 {[%clk 0:01:51]} 30. Qe3 {[%clk 0:01:09]}  Qg4 {[%clk 0:01:41]} 31. Bxe5 {[%clk 0:01:01]}  dxe5 {[%clk 0:01:42]} 32. b6 {[%clk 0:00:58]}  f5 {[%clk 0:01:41]} 33. Qg3 {[%clk 0:00:53]}  Qh5 {[%clk 0:01:40]} 34. Qxg7# {[%clk 0:00:51]} 1-0


[Site "https://www.chess.com"]

[Event "Titled Tuesday Blitz March 28 Late 2023"]
[White "Veiga, Jose Francisco R P Neves"]
[Black "Abduzhaparov"]
[WhiteFideId "1930087"]
[WhiteElo "2320"]
[BlackElo "2387"]
[Result "1-0"]
[Round "01"]
[TimeControl "180+2"]
[Date "2023.03.28"]
[WhiteClock "0:00:29"]
[BlackClock "0:00:04"]

1. c4 {[%clk 0:02:55]}  d6 {[%clk 0:03:00]} 2. Nc3 {[%clk 0:02:50]}  g6 {[%clk 0:03:00]} 3. d4 {[%clk 0:02:43]}  Bg7 {[%clk 0:03:01]} 4. Nf3 {[%clk 0:02:42]}  Nc6 {[%clk 0:03:01]} 5. Bg5 {[%clk 0:02:41]}  Bg4 {[%clk 0:02:59]} 6. e3 {[%clk 0:02:39]}  h6 {[%clk 0:02:56]} 7. Bh4 {[%clk 0:02:39]}  g5 {[%clk 0:02:54]} 8. Bg3 {[%clk 0:02:39]}  e5 {[%clk 0:02:45]} 9. d5 {[%clk 0:02:34]}  Nce7 {[%clk 0:02:44]} 10. h3 {[%clk 0:02:32]}  Bh5 {[%clk 0:02:41]} 11. e4 {[%clk 0:02:30]}  f5 {[%clk 0:02:37]} 12. exf5 {[%clk 0:02:29]}  Nxf5 {[%clk 0:02:38]} 13. Bh2 {[%clk 0:02:28]}  Nd4 {[%clk 0:02:27]} 14. g4 {[%clk 0:02:22]}  Bg6 {[%clk 0:02:26]} 15. Bd3 {[%clk 0:02:11]}  Ne7 {[%clk 0:02:08]} 16. O-O {[%clk 0:02:00]}  O-O {[%clk 0:02:07]} 17. Nxd4 {[%clk 0:01:59]}  exd4 {[%clk 0:02:08]} 18. Ne4 {[%clk 0:01:56]}  Qe8 {[%clk 0:01:55]} 19. f4 {[%clk 0:01:52]}  gxf4 {[%clk 0:01:51]} 20. Bxf4 {[%clk 0:01:51]}  Kh7 {[%clk 0:01:37]} 21. Qc2 {[%clk 0:01:45]}  Be5 {[%clk 0:01:32]} 22. Bxe5 {[%clk 0:01:41]}  dxe5 {[%clk 0:01:33]} 23. Nf6+ {[%clk 0:01:38]}  Rxf6 {[%clk 0:01:28]} 24. Rxf6 {[%clk 0:01:39]}  Kg7 {[%clk 0:01:17]} 25. Raf1 {[%clk 0:01:38]}  Rd8 {[%clk 0:01:04]} 26. Re6 {[%clk 0:01:30]}  Bxd3 {[%clk 0:00:49]} 27. Qxd3 {[%clk 0:01:31]}  Rd6 {[%clk 0:00:48]} 28. Rxe5 {[%clk 0:01:26]}  Qd7 {[%clk 0:00:40]} 29. Qxd4 {[%clk 0:01:20]}  Kg8 {[%clk 0:00:26]} 30. Re2 {[%clk 0:00:57]}  Ng6 {[%clk 0:00:23]} 31. Qe4 {[%clk 0:00:53]}  Kg7 {[%clk 0:00:20]} 32. Qe8 {[%clk 0:00:50]}  Qxe8 {[%clk 0:00:19]} 33. Rxe8 {[%clk 0:00:50]}  c6 {[%clk 0:00:20]} 34. Rb8 {[%clk 0:00:44]}  cxd5 {[%clk 0:00:17]} 35. Rxb7+ {[%clk 0:00:44]}  Kg8 {[%clk 0:00:18]} 36. c5 {[%clk 0:00:41]}  Rc6 {[%clk 0:00:18]} 37. b4 {[%clk 0:00:41]}  a5 {[%clk 0:00:17]} 38. a3 {[%clk 0:00:41]}  axb4 {[%clk 0:00:18]} 39. axb4 {[%clk 0:00:42]}  Nh4 {[%clk 0:00:18]} 40. Ra1 {[%clk 0:00:42]}  Rc8 {[%clk 0:00:17]} 41. Ra6 {[%clk 0:00:40]}  Rf8 {[%clk 0:00:16]} 42. Rxh6 {[%clk 0:00:37]}  Nf3+ {[%clk 0:00:15]} 43. Kg2 {[%clk 0:00:36]}  Ne5 {[%clk 0:00:14]} 44. Re6 {[%clk 0:00:34]}  Nd3 {[%clk 0:00:13]} 45. Rg6+ {[%clk 0:00:34]}  Kh8 {[%clk 0:00:13]} 46. Rh6+ {[%clk 0:00:35]}  Kg8 {[%clk 0:00:14]} 47. Rd6 {[%clk 0:00:35]}  Re8 {[%clk 0:00:11]} 48. Kg3 {[%clk 0:00:33]}  Re3+ {[%clk 0:00:09]} 49. Kh4 {[%clk 0:00:34]}  Re8 {[%clk 0:00:09]} 50. Rxd5 {[%clk 0:00:33]}  Nf4 {[%clk 0:00:09]} 51. Rdd7 {[%clk 0:00:30]}  Ng6+ {[%clk 0:00:08]} 52. Kg5 {[%clk 0:00:29]}  Ne5 {[%clk 0:00:08]} 53. Rg7+ {[%clk 0:00:28]}  Kf8 {[%clk 0:00:06]} 54. Rh7 {[%clk 0:00:27]}  Kg8 {[%clk 0:00:06]} 55. Rhe7 {[%clk 0:00:27]}  Rd8 {[%clk 0:00:04]} 56. Rxe5 {[%clk 0:00:26]}  Rf8 {[%clk 0:00:03]} 57. Ree7 {[%clk 0:00:25]}  Rd8 {[%clk 0:00:02]} 58. Rg7+ {[%clk 0:00:25]}  Kf8 {[%clk 0:00:02]} 59. Rgc7 {[%clk 0:00:25]}  Re8 {[%clk 0:00:01]} 60. Rf7+ {[%clk 0:00:25]}  Kg8 {[%clk 0:00:02]} 61. Rg7+ {[%clk 0:00:26]}  Kh8 {[%clk 0:00:02]} 62. Rh7+ {[%clk 0:00:27]}  Kg8 {[%clk 0:00:03]} 63. Rbg7+ {[%clk 0:00:27]}  Kf8 {[%clk 0:00:03]} 64. Rh8+ {[%clk 0:00:28]}  Kxg7 {[%clk 0:00:03]} 65. Rxe8 {[%clk 0:00:29]}  Kh7 {[%clk 0:00:03]} 66. Re7+ {[%clk 0:00:28]}  Kh8 {[%clk 0:00:04]} 67. Kg6 {[%clk 0:00:29]} 1-0


[Site "https://www.chess.com"]